bitfinex-derivatives/quotes_SOLF0:USTF0_20260116
["timestamp","ask_amount","ask_price","bid_price","bid_amount"]
[1768575626289,264.42,143.11,143.01,3.04929479]
[1768575627393,6.2922,143.09,143.01,3.04929479]
[1768575627794,97.8761,143.09,143.01,3.04929479]
[1768575628791,6.293,143.07,143.01,3.04929479]
[1768575629193,97.8713,143.1,143.01,3.04929479]
[1768575629996,6.2921,143.09,143.01,3.04929479]
[1768575630196,97.8707,143.1,142.99,3.26991473]
[1768575630694,97.8816,143.08,142.99,3.26991473]
[1768575631088,6.293,143.07,142.99,3.26991473]
[1768575631598,264.42,143.11,142.99,3.26991473]
[1768575632101,6.2916,143.1,143.01,3.26991473]
[1768575632400,264.42,143.11,143.01,3.26991473]
[1768575632694,270.7112,143.11,143.02,3.26991473]
[1768575633099,264.42,143.11,143.02,9.56461473]
[1768575633298,264.42,143.11,143.03,3.26991473]
[1768575633799,264.42,143.11,143.01,3.26991473]
[1768575634392,270.7112,143.11,143.01,9.56521473]
[1768575634701,264.42,143.11,143.02,3.26991473]
[1768575635404,6.2922,143.09,142.99,9.56601473]
[1768575635595,97.8743,143.1,143.0,3.26991473]
[1768575636198,6.2921,143.09,143.0,3.26991473]
[1768575637495,97.8726,143.1,143.0,3.26991473]
[1768575638398,6.293,143.07,143.0,3.26991473]
[1768575638789,362.1652,143.11,143.0,3.26991473]
[1768575638989,6.2922,143.09,143.01,3.26991473]
[1768575639192,362.1651,143.11,143.01,3.26991473]
[1768575639904,103.47308347,143.09,142.98,3.26991473]
[1768575640903,6.2934,143.06,142.98,3.26991473]
[1768575641510,97.8886,143.07,142.98,3.26991473]
[1768575641708,97.8838,143.08,142.98,3.26991473]
[1768575642398,6.2935,143.06,142.98,3.26991473]
[1768575643112,6.2935,143.06,142.98,9.56661473]
[1768575643612,6.2935,143.06,142.98,3.26991473]
[1768575645016,6.2927,143.08,142.99,3.26991473]
[1768575645718,6.2918,143.1,143.01,3.26991473]
[1768575646508,6.292,143.09,143.01,9.56521473]
[1768575646815,97.8637,143.11,143.01,3.26991473]
[1768575647914,6.2926,143.08,143.01,3.26991473]
[1768575650014,6.2926,143.08,143.01,9.56521473]
[1768575650419,6.2916,143.1,143.02,3.26991473]
[1768575651721,6.292,143.09,143.02,9.56481473]
[1768575651918,97.8637,143.11,142.99,3.15194134]
[1768575652811,6.2925,143.08,143.01,3.15194134]
[1768575653010,367.74823321,143.12,143.01,3.15194134]
[1768575653522,6.2917,143.1,143.03,9.44644134]
[1768575654210,6.2917,143.1,143.03,3.15194134]
[1768575655322,8.48165509,143.1,143.03,3.15194134]
[1768575656619,6.2917,143.1,143.03,3.15194134]
[1768575656919,6.2917,143.1,143.04,3.15194134]
[1768575657322,266.44995509,143.14,143.04,3.15194134]
[1768575657721,6.2902,143.13,143.05,6.2934]
[1768575657922,266.44995509,143.14,143.05,9.44534134]
[1768575658116,264.26,143.14,143.05,9.44534134]
[1768575658316,2.18995509,143.13,143.05,9.44534134]
[1768575658513,264.26,143.14,143.07,3.15194134]
[1768575658714,2.18995509,143.17,143.08,3.15194134]
[1768575658919,264.24,143.2,143.08,3.15194134]
[1768575659122,2.18995509,143.18,143.08,3.15194134]
[1768575659622,264.24,143.2,143.08,3.15194134]
[1768575659822,266.42995509,143.2,143.1,3.15194134]
[1768575660019,2.18995509,143.18,143.1,3.15194134]
[1768575660218,2.18995509,143.19,143.1,3.15194134]
[1768575660722,2.18995509,143.19,143.04,97.9055]
[1768575660723,2.18995509,143.17,143.07,3.15194134]
[1768575660923,2.18995509,143.15,143.07,3.15194134]
[1768575661425,97.8164,143.18,143.07,3.15194134]
[1768575661921,97.8164,143.18,143.08,3.15194134]
[1768575662533,97.8164,143.18,143.05,3.15194134]
[1768575662534,103.41180362,143.16,143.05,3.15194134]
[1768575662828,6.2896,143.15,143.07,3.15194134]
[1768575663017,5.58250362,143.16,143.07,3.15194134]
[1768575663526,6.2902,143.13,143.07,3.15194134]
[1768575664221,6.2902,143.13,143.04,3.15194134]
[1768575664825,6.2911,143.11,143.04,3.15194134]
[1768575665032,103.43040362,143.13,143.04,3.15194134]
[1768575665223,5.58250362,143.13,143.04,3.15194134]
[1768575665428,6.2911,143.11,143.04,3.15194134]
[1768575665829,97.855,143.12,143.04,3.15194134]
[1768575666225,97.8619,143.11,142.98,3.15194134]
[1768575666620,97.8619,143.11,143.01,3.15194134]
[1768575667929,6.2929,143.07,143.01,3.15194134]
[1768575669135,6.2933,143.06,143.01,3.15194134]
[1768575670335,6.2938,143.05,142.98,3.15194134]
[1768575672530,97.8819,143.08,142.98,3.15194134]
[1768575672729,6.2942,143.04,142.98,3.15194134]
[1768575673620,6.2935,143.06,142.98,3.15194134]
[1768575673927,97.8819,143.08,142.98,3.15194134]
[1768575674637,103.47150362,143.07,142.96,3.15194134]
[1768575675539,6.2948,143.03,142.96,9.44944134]
[1768575675741,97.8819,143.08,142.97,3.15194134]
[1768575676043,97.8686,143.1,142.97,3.15194134]
[1768575676044,97.855,143.12,142.99,3.15194134]
[1768575677532,97.861,143.11,143.01,3.15194134]
[1768575677736,97.868,143.1,142.98,3.15194134]
[1768575678132,97.861,143.11,143.0,3.15194134]
[1768575679336,97.8753,143.09,143.0,3.15194134]
[1768575679541,97.8753,143.09,142.96,3.15194134]
[1768575679840,97.8826,143.08,142.96,3.15194134]
[1768575680041,6.2936,143.06,142.97,9.44874134]
[1768575680341,97.8826,143.08,142.98,3.15194134]
[1768575680645,6.2943,143.04,142.98,3.15194134]
[1768575681140,97.9029,143.05,142.95,3.15194134]
[1768575681334,97.9101,143.04,142.92,3.2098628]
[1768575682237,97.9029,143.05,142.95,3.2098628]
[1768575682744,6.2951,143.02,142.95,9.5077628]
[1768575682943,6.2951,143.02,142.95,3.2098628]
[1768575683348,6.2956,143.01,142.93,6.2986]
[1768575683537,6.2956,143.01,142.93,9.5084628]
[1768575684352,6.2956,143.01,142.94,6.2984]
[1768575684836,6.2956,143.01,142.94,9.5082628]
[1768575685042,6.2949,143.03,142.95,3.2098628]
[1768575685242,97.9029,143.05,142.95,9.5078628]
[1768575685442,97.9029,143.05,142.92,3.2098628]
[1768575685744,97.9129,143.04,142.92,3.2098628]
[1768575685941,97.9129,143.04,142.93,6.2985]
[1768575686139,103.49960362,143.03,142.92,3.2098628]
[1768575687445,97.9227,143.02,142.92,3.2098628]
[1768575688144,6.2963,143.0,142.92,3.2098628]
[1768575688739,6.2968,142.98,142.92,3.2098628]
[1768575689745,97.9544,142.98,142.86,267.44214981]
[1768575689952,5.58250362,142.96,142.86,3.10214981]
[1768575690150,103.54650362,142.96,142.86,3.10214981]
[1768575690352,6.2987,142.94,142.86,3.10214981]
[1768575691046,97.9804,142.94,142.85,6.554e-05]
[1768575691849,97.9888,142.93,142.85,6.554e-05]
[1768575692050,103.57130362,142.93,142.85,6.554e-05]
[1768575692848,6.3002,142.91,142.85,6.554e-05]
[1768575694345,98.0029,142.91,142.85,6.554e-05]
[1768575694947,6.3,142.91,142.85,6.554e-05]
[1768575695956,6.2991,142.93,142.85,6.554e-05]
[1768575696349,362.3804,142.94,142.85,6.554e-05]
[1768575696545,97.9852,142.93,142.85,6.554e-05]
[1768575696745,97.9934,142.92,142.85,6.554e-05]
[1768575697751,6.3007,142.9,142.85,6.554e-05]
[1768575698555,6.2997,142.92,142.85,6.554e-05]
[1768575698948,368.00770362,142.93,142.85,6.554e-05]
[1768575699151,97.9952,142.92,142.85,6.554e-05]
[1768575700257,6.3009,142.89,142.85,6.554e-05]
[1768575700661,5.58250362,142.93,142.85,6.554e-05]
[1768575701865,6.3001,142.91,142.85,6.554e-05]
[1768575702066,5.58250362,142.93,142.85,6.554e-05]
[1768575702464,6.3004,142.9,142.85,6.554e-05]
[1768575702855,6.2997,142.92,142.85,6.554e-05]
[1768575703060,264.48,142.95,142.85,6.554e-05]
[1768575703259,2.1943779,142.95,142.87,3.10214981]
[1768575703463,8.4925779,142.95,142.87,9.40354981]
[1768575704666,8.4925779,142.95,142.88,3.10214981]
[1768575705168,272.9717779,142.97,142.89,3.10214981]
[1768575705360,264.48,142.97,142.89,3.10214981]
[1768575705562,264.48,142.97,142.86,3.10214981]
[1768575705766,6.2988,142.94,142.86,9.40384981]
[1768575706968,6.2979,142.96,142.88,3.10214981]
[1768575707664,97.9342,143.01,142.88,3.10214981]
[1768575707860,264.5,143.0,142.88,3.10214981]
[1768575708066,97.944,142.99,142.88,3.10214981]
[1768575709871,6.2982,142.95,142.88,3.10214981]
[1768575710561,6.2991,142.93,142.85,9.40441535]
[1768575711268,103.54953874,142.98,142.85,3.10221535]
[1768575711269,6.2996,142.92,142.85,3.10221535]
[1768575711465,97.9797,142.94,142.85,6.554e-05]
[1768575711672,362.4597,142.94,142.85,6.554e-05]
[1768575712259,6.2999,142.91,142.85,6.554e-05]
[1768575712862,362.4597,142.94,142.85,6.554e-05]
[1768575712863,6.3004,142.9,142.85,6.554e-05]
[1768575713767,6.3008,142.89,142.85,6.554e-05]
[1768575714367,6.3012,142.88,142.85,6.554e-05]
[1768575715674,98.0012,142.91,142.85,6.554e-05]
[1768575715675,6.3017,142.87,142.85,6.554e-05]
[1768575716067,98.0187,142.88,142.8,1.21825279]
[1768575716276,98.0187,142.88,142.77,6.3058]
[1768575716473,98.0187,142.88,142.77,7.52430873]
[1768575717274,98.0187,142.88,142.77,10.75614431]
[1768575717866,6.3025,142.85,142.78,3.23183558]
[1768575719972,98.0276,142.87,142.77,1.21850873]
[1768575720373,98.0352,142.86,142.75,9.53843558]
[1768575720576,6.304,142.82,142.75,4.45055767]
[1768575721878,6.3033,142.84,142.75,4.45055767]
[1768575722074,98.0154,142.89,142.76,3.23183558]
[1768575722681,362.5599,142.91,142.79,3.23183558]
[1768575722682,264.56,142.91,142.79,3.23183558]
[1768575722975,6.3006,142.9,142.81,3.23183558]
[1768575723175,5.59643874,142.93,142.81,3.23183558]
[1768575723979,103.58393874,142.93,142.81,3.23183558]
[1768575724179,97.9991,142.91,142.81,3.23183558]
[1768575724380,6.3006,142.9,142.81,9.53593558]
[1768575724785,6.3006,142.9,142.81,3.23183558]
[1768575724980,6.2998,142.92,142.83,9.53513558]
[1768575725183,5.59643874,142.93,142.83,9.53513558]
[1768575725385,97.9915,142.92,142.8,3.23183558]
[1768575725579,6.3009,142.89,142.81,6.304]
[1768575726284,6.3002,142.91,142.82,6.3036]
[1768575726681,103.58413874,142.93,142.82,6.3036]
[1768575727887,6.3004,142.9,142.82,6.3036]
[1768575728485,6.3008,142.89,142.8,9.53613558]
[1768575728786,6.3008,142.89,142.8,3.23183558]
[1768575728988,6.3018,142.87,142.8,3.23183558]
[1768575729583,6.3018,142.87,142.8,9.53643558]
[1768575729983,6.3018,142.87,142.8,3.23183558]
[1768575730688,98.0157,142.89,142.77,3.23183558]
[1768575731389,6.3024,142.86,142.78,3.23183558]
[1768575731990,103.60133874,142.9,142.79,6.305]
[1768575732181,5.23698069,142.89,142.79,6.305]
[1768575732380,97.9983,142.91,142.78,3.23183558]
[1768575732589,6.3013,142.88,142.8,3.23183558]
[1768575732886,97.9983,142.91,142.77,98.0886]
[1768575733097,6.3021,142.86,142.78,9.53703558]
[1768575733704,6.3026,142.85,142.78,3.23183558]
[1768575733903,6.3026,142.85,142.75,4.45055767]
[1768575734101,6.3043,142.81,142.7,98.1403]
[1768575734398,5.59643874,142.83,142.7,3.23183558]
[1768575734592,6.3049,142.8,142.7,3.23183558]
[1768575734792,6.3049,142.8,142.71,3.23183558]
[1768575734993,98.0681,142.81,142.71,3.23183558]
[1768575735300,98.0609,142.82,142.71,3.23183558]
[1768575735498,98.0434,142.85,142.72,3.23183558]
[1768575735802,16.0870033,142.84,142.72,3.23183558]
[1768575735994,5.23725071,142.83,142.72,3.23183558]
[1768575736195,98.0463,142.84,142.73,3.23183558]
[1768575736396,103.62973874,142.86,142.72,3.23183558]
[1768575736690,269.85509142,142.85,142.72,3.23183558]
[1768575736895,103.62973874,142.86,142.72,3.23183558]
[1768575737097,5.23505829,142.85,142.72,3.23183558]
[1768575737300,6.3037,142.83,142.73,3.23183558]
[1768575737804,103.62973874,142.86,142.73,3.23183558]
[1768575738006,6.3027,142.85,142.75,3.23183558]
[1768575738697,6.3027,142.85,142.76,3.23183558]
[1768575739500,6.3034,142.83,142.76,3.23183558]
[1768575739703,98.0478,142.84,142.73,3.23183558]
[1768575740206,103.65843874,142.82,142.7,3.23183558]
[1768575740397,5.59643874,142.82,142.7,4.45083516]
[1768575740593,5.59643874,142.82,142.71,3.23183558]
[1768575741198,5.59643874,142.82,142.72,9.53983558]
[1768575742299,6.3049,142.8,142.72,3.23183558]
[1768575743099,6.3049,142.8,142.71,6.3085]
[1768575743500,6.3054,142.79,142.7,10.58300641]
[1768575745108,6.3046,142.81,142.71,9.36350683]
[1768575745307,98.0641,142.82,142.71,9.36350683]
[1768575745509,6.3046,142.81,142.72,3.05500683]
[1768575746505,98.0776,142.8,142.7,1.21899958]
[1768575746811,103.67403874,142.8,142.66,3.05500683]
[1768575747000,6.3063,142.77,142.69,6.3094]
[1768575748008,6.3063,142.77,142.69,9.36440683]
[1768575748405,6.3065,142.76,142.69,3.05500683]
[1768575748602,98.0872,142.78,142.69,3.05500683]
[1768575748797,98.0872,142.78,142.67,7.52939855]
[1768575748998,98.0872,142.78,142.67,10.6197973]
[1768575749205,6.3075,142.74,142.67,3.09039875]
[1768575749510,98.1012,142.76,142.64,4.30991095]
[1768575749714,98.0878,142.78,142.65,3.09039875]
[1768575750105,5.59643874,142.79,142.68,3.09039875]
[1768575750801,11.90183874,142.79,142.7,3.09039875]
[1768575751000,103.65793874,142.82,142.7,3.09039875]
[1768575751406,6.3057,142.78,142.7,9.39939875]
[1768575751802,103.65793874,142.82,142.7,9.39939875]
[1768575752003,6.3053,142.79,142.7,9.39939875]
[1768575752204,103.65793874,142.82,142.72,9.39859875]
[1768575752205,5.59643874,142.82,142.72,9.39859875]
[1768575753009,368.40383874,142.84,142.72,9.39859875]
[1768575753610,362.8074,142.84,142.72,9.39859875]
[1768575753811,6.3044,142.81,142.72,9.39859875]
[1768575754013,98.0403,142.85,142.74,9.39759875]
[1768575754216,98.0403,142.85,142.71,98.1313]
[1768575754217,5.59643874,142.86,142.75,3.09039875]
[1768575754517,271.0619,142.87,142.75,3.09039875]
[1768575754712,264.76,142.87,142.77,9.39619875]
[1768575755120,103.62873874,142.86,142.74,3.09039875]
[1768575756311,5.59643874,142.86,142.76,3.09039875]
[1768575756814,6.3035,142.83,142.76,3.09039875]
[1768575757019,98.0461,142.84,142.73,9.39809875]
[1768575757713,6.3043,142.81,142.73,9.39809875]
[1768575758920,6.3037,142.83,142.74,3.09039875]
[1768575759112,264.76,142.85,142.74,3.09039875]
[1768575759619,6.3024,142.86,142.77,3.09039875]
[1768575759817,5.90247284,142.85,142.77,3.09039875]
[1768575760015,270.33643874,142.89,142.77,3.09039875]
[1768575760217,5.90312117,142.88,142.8,6.3044]
[1768575760515,5.90312117,142.87,142.77,3.09039875]
[1768575760716,5.90434536,142.86,142.77,3.09039875]
[1768575761016,6.3017,142.87,142.78,9.39559875]
[1768575762521,6.3017,142.87,142.79,3.09039875]
[1768575762716,6.3017,142.87,142.8,3.09039875]
[1768575762923,6.3009,142.89,142.8,3.09039875]
[1768575763118,5.70724398,142.88,142.81,3.09039875]
[1768575763324,97.9979,142.92,142.81,3.09039875]
[1768575763621,10.96522655,142.91,142.81,3.09039875]
[1768575763818,5.70811368,142.9,142.81,9.39439875]
[1768575764019,6.3001,142.91,142.81,9.39439875]
[1768575764425,6.3001,142.91,142.82,9.39399875]
[1768575765021,5.59643874,142.91,142.8,6.3044]
[1768575765321,5.70713357,142.9,142.8,6.3044]
[1768575765522,5.70713357,142.89,142.8,9.39479875]
[1768575765824,6.3013,142.88,142.8,3.09039875]
[1768575766027,98.0094,142.9,142.8,3.09039875]
[1768575766222,5.70698989,142.89,142.8,3.09039875]
[1768575766424,98.0094,142.9,142.8,3.09039875]
[1768575766723,5.70686079,142.89,142.8,3.09039875]
[1768575767021,5.60385151,142.96,142.84,3.09039875]
[1768575767218,5.70566187,142.95,142.84,3.09039875]
[1768575767423,103.55465151,142.98,142.85,3.09039875]
[1768575767620,5.70120106,142.97,142.85,3.09039875]
[1768575767930,97.9575,142.97,142.85,3.09039875]
[1768575768722,6.2982,142.95,142.86,9.39229875]
[1768575768922,5.60385151,142.98,142.87,3.09039875]
[1768575769316,6.2975,142.97,142.88,6.301]
[1768575769621,97.9164,143.03,142.88,3.09039875]
[1768575769818,97.9101,143.04,142.91,3.09039875]
[1768575770018,5.49526859,143.03,142.91,3.09039875]
[1768575770219,97.9101,143.04,142.91,3.09039875]
[1768575770418,6.2952,143.02,142.93,9.38919875]
[1768575770622,97.9161,143.03,142.93,3.09039875]
[1768575771427,97.9307,143.01,142.9,3.09613716]
[1768575772321,97.9307,143.01,142.89,6.3005]
[1768575772322,6.2974,142.97,142.87,9.39763716]
[1768575774116,97.9507,142.98,142.87,3.09613716]
[1768575774316,97.9606,142.97,142.87,3.09613716]
[1768575774913,6.2987,142.94,142.85,6.3023]
[1768575775415,5.60385151,142.96,142.85,6.3023]
[1768575775815,5.60385151,142.96,142.85,9.39843716]
[1768575776425,11.90165151,142.96,142.87,3.09613716]
[1768575777124,5.60385151,142.96,142.85,6.3022]
[1768575777430,5.60385151,142.96,142.85,9.39833716]
[1768575778124,6.2986,142.94,142.86,6.3019]
[1768575778328,5.60385151,142.96,142.86,9.39803716]
[1768575778629,103.55455151,142.98,142.86,9.39803716]
[1768575778826,6.2979,142.96,142.87,6.3012]
[1768575779632,6.2979,142.96,142.88,3.09613716]
[1768575779818,11.90085151,142.98,142.89,3.09613716]
[1768575780018,5.60385151,142.98,142.89,3.09613716]
[1768575780221,6.2979,142.96,142.86,9.39783716]
[1768575780625,6.2979,142.96,142.87,3.09613716]
[1768575780932,264.58,143.0,142.89,3.09613716]
[1768575781419,5.60385151,143.01,142.89,3.09613716]
[1768575781628,6.2958,143.01,142.91,3.09613716]
[1768575781828,264.54,143.02,142.91,3.09613716]
[1768575782333,264.54,143.02,142.94,3.09613716]
[1768575782628,5.60385151,143.04,142.94,3.09613716]
[1768575782822,5.60385151,143.04,142.93,6.2987]
[1768575783840,6.2956,143.01,142.93,6.2987]
[1768575784032,97.9236,143.02,142.91,9.39573716]
[1768575784237,103.53515151,143.01,142.91,3.09613716]
[1768575784532,6.297,142.98,142.9,9.39623716]
[1768575784728,97.9236,143.02,142.9,3.09613716]
[1768575784929,5.60385151,143.03,142.9,3.09613716]
[1768575785125,103.51705151,143.04,142.9,3.09613716]
[1768575785328,6.2955,143.01,142.93,6.2988]
[1768575785530,5.60385151,143.04,142.92,3.09613716]
[1768575785835,270.10385151,143.07,142.94,3.09613716]
[1768575786245,367.99555151,143.07,142.94,3.09613716]
[1768575786736,97.9123,143.04,142.91,3.09613716]
[1768575786934,103.51615151,143.04,142.91,3.09613716]
[1768575787844,6.2955,143.01,142.93,6.2989]
[1768575788034,367.99555151,143.07,142.93,3.09613716]
[1768575788537,6.294,143.05,142.95,3.09613716]
[1768575788726,270.10385151,143.07,142.95,3.09613716]
[1768575788931,97.8962,143.06,142.95,3.09613716]
[1768575789336,97.8962,143.06,142.93,6.2987]
[1768575789337,6.2947,143.03,142.93,6.2987]
[1768575789536,103.51405151,143.04,142.89,3.09613716]
[1768575790041,6.2956,143.01,142.92,6.2993]
[1768575790634,5.60385151,143.01,142.9,6.2999]
[1768575791036,6.2973,142.97,142.88,9.39703716]
[1768575791342,5.60385151,142.98,142.88,9.39703716]
[1768575792838,6.2978,142.96,142.88,9.39703716]
[1768575795536,5.60385151,142.98,142.89,3.09613716]
[1768575795537,11.90095151,142.98,142.89,3.09613716]
[1768575796748,11.90095151,142.98,142.9,6.3002]
[1768575798046,6.2971,142.98,142.91,3.09613716]
[1768575800145,6.2971,142.98,142.9,6.3002]
[1768575800350,5.60385151,142.98,142.85,3.09613716]
[1768575801352,5.60385151,142.98,142.87,3.15672216]
[1768575801752,6.2975,142.97,142.89,6.3006]
[1768575802451,5.60385151,143.01,142.9,3.15672216]
[1768575802948,6.2964,142.99,142.9,3.15672216]
[1768575803148,264.46,143.02,142.9,3.15672216]
[1768575804156,264.46,143.02,142.94,6.2984]
[1768575804451,6.2956,143.01,142.93,3.15672216]
[1768575805652,6.296,143.0,142.9,3.15672216]
[1768575805850,97.9243,143.02,142.9,3.15672216]
[1768575806057,10.68334763,143.01,142.9,3.15672216]
[1768575806248,6.2973,142.97,142.89,6.3005]
[1768575811256,270.7567,142.99,142.91,3.29993733]
[1768575811558,5.60385151,143.02,142.91,3.29993733]
[1768575811763,10.72322922,143.01,142.91,3.29993733]
[1768575811954,5.45221294,143.0,142.91,3.29993733]
[1768575812157,264.46,143.04,142.91,3.29993733]
[1768575812355,6.296,143.0,142.93,6.2989]
[1768575812560,6.296,143.0,142.91,3.29993733]
[1768575813354,6.296,143.0,142.92,6.2993]
[1768575814259,6.2964,142.99,142.91,3.29993733]
[1768575815262,6.2964,142.99,142.92,6.2993]
[1768575815655,6.2968,142.98,142.89,3.29993733]
[1768575815861,103.52965151,143.02,142.89,3.29993733]
[1768575816161,10.72826182,143.01,142.89,3.29993733]
[1768575816356,10.72826182,143.0,142.89,3.29993733]
[1768575816557,103.52965151,143.02,142.89,3.29993733]
[1768575816750,103.52965151,143.02,142.92,6.2994]
[1768575816751,6.2964,142.99,142.92,6.2994]
[1768575817556,6.2968,142.98,142.91,6.2997]
[1768575817958,103.52965151,143.02,142.91,6.2997]
[1768575818158,6.2963,142.99,142.91,6.2997]
[1768575818461,103.52435151,143.03,142.92,3.29993733]
[1768575818659,10.72599741,143.02,142.92,3.29993733]
[1768575818859,10.72599741,143.01,142.92,3.29993733]
[1768575819060,10.72599741,143.0,142.92,3.29993733]
[1768575819264,6.2963,142.99,142.92,9.59933733]
[1768575819556,2.19364726,142.98,142.92,9.59933733]
[1768575819759,2.19364726,142.98,142.92,3.29993733]
[1768575820058,2.19364726,143.01,142.92,3.29993733]
[1768575820263,264.46,143.04,142.94,3.29993733]
[1768575820458,7.46553264,143.03,142.94,3.29993733]
[1768575820665,2.19364726,143.03,142.94,3.29993733]
[1768575821167,2.19364726,143.01,142.93,6.2987]
[1768575822163,264.46,143.04,142.93,9.59863733]
[1768575822366,2.19364726,143.02,142.93,9.59863733]
[1768575822559,5.27443463,143.01,142.93,9.59863733]
[1768575822755,6.2955,143.01,142.93,9.59863733]
[1768575823354,6.2955,143.01,142.94,9.59833733]
[1768575823560,2.19364726,143.02,142.94,9.59833733]
[1768575823763,5.27605018,143.01,142.94,9.59833733]
[1768575823964,264.46,143.04,142.94,9.59833733]
[1768575824163,2.19364726,143.01,142.94,9.59833733]
[1768575824365,264.46,143.04,142.94,9.59833733]
[1768575824566,2.19364726,143.01,142.94,9.59833733]
[1768575824762,6.2955,143.01,142.94,9.59833733]
[1768575825067,8.48914726,143.01,142.94,9.59833733]
[1768575825263,8.48914726,143.01,142.92,6.299]
[1768575825468,2.19364726,142.99,142.92,6.299]
[1768575825663,2.19364726,142.97,142.91,3.29993733]
[1768575826167,2.19364726,142.97,142.92,6.2994]
[1768575827268,8.48966978,142.99,142.92,9.59933733]
[1768575828062,362.3747,143.04,142.93,3.29993733]
[1768575828063,2.19336978,143.01,142.93,3.29993733]
[1768575828356,264.46,143.04,142.93,3.29993733]
[1768575828357,2.19336978,143.02,142.93,3.29993733]
[1768575828560,5.27789898,143.01,142.93,3.29993733]
[1768575828764,8.48796978,143.03,142.96,6.2976]
[1768575828965,10.59240924,143.02,142.93,3.29993733]
[1768575829270,6.294,143.05,142.95,3.29993733]
[1768575829460,2.19336978,143.05,142.95,3.29993733]
[1768575829969,2.19336978,143.05,142.98,6.2967]
[1768575830162,2.19336978,143.06,142.97,3.29993733]
[1768575830362,5.27575968,143.05,142.97,3.29993733]
[1768575830564,270.7321,143.09,143.01,6.2953]
[1768575830770,10.58328694,143.08,143.0,3.29993733]
[1768575831068,266.63336978,143.09,143.0,3.29993733]
[1768575831274,5.2730553,143.08,143.0,3.29993733]
[1768575831469,264.44,143.09,143.0,3.29993733]
[1768575831771,264.44,143.09,143.02,6.2949]
[1768575832666,11.87874001,143.12,143.03,9.59248379]
[1768575832872,10.56693524,143.11,143.03,9.59248379]
[1768575833072,5.26601798,143.1,143.03,9.59248379]
[1768575833272,11.87874001,143.12,143.03,9.59248379]
[1768575833473,5.26244959,143.11,143.04,6.294]
[1768575833676,5.58784001,143.17,143.04,3.29818379]
[1768575833866,10.5572533,143.16,143.05,3.29818379]
[1768575834062,10.5572533,143.15,143.05,101.19728379]
[1768575834262,5.26155481,143.14,143.06,3.29818379]
[1768575834470,11.87644001,143.17,143.06,3.29818379]
[1768575834775,10.5442901,143.16,143.06,3.29818379]
[1768575834970,5.25527854,143.15,143.06,9.59118379]
[1768575835170,6.2891,143.16,143.06,9.59118379]
[1768575835370,5.24972049,143.15,143.06,9.59118379]
[1768575835561,6.2891,143.16,143.06,9.59118379]
[1768575835765,5.24994749,143.15,143.06,9.59118379]
[1768575835965,6.2891,143.16,143.06,9.59118379]
[1768575836161,5.24994267,143.15,143.07,6.2925]
[1768575836369,270.7082,143.18,143.07,6.2925]
[1768575836565,10.52494603,143.17,143.07,6.2925]
[1768575836772,10.52494603,143.16,143.07,6.2925]
[1768575836970,264.42,143.18,143.07,6.2925]
[1768575837171,10.5243289,143.17,143.07,6.2925]
[1768575837372,5.24533021,143.16,143.07,6.2925]
[1768575837576,264.42,143.18,143.07,6.2925]
[1768575837779,264.42,143.18,143.09,3.29818379]
[1768575838072,264.42,143.18,143.06,101.18698379]
[1768575838278,264.42,143.18,143.07,3.29818379]
[1768575839569,270.7081,143.18,143.09,6.2916]
[1768575839767,270.7081,143.18,143.04,97.9029]
[1768575839768,264.42,143.18,143.04,101.20108379]
[1768575839969,264.42,143.18,143.05,3.29818379]
[1768575840275,6.289,143.16,143.05,9.59158379]
[1768575840581,103.41814001,143.16,143.02,3.29818379]
[1768575841375,6.2903,143.13,143.04,6.2939]
[1768575841573,11.87814001,143.13,143.04,6.2939]
[1768575842478,6.2908,143.12,143.02,9.59308379]
[1768575844674,5.58784001,143.13,143.04,6.294]
[1768575844879,6.29,143.14,143.04,3.29818379]
[1768575845268,6.2902,143.13,143.04,3.29818379]
[1768575846680,6.2907,143.12,143.01,3.29818379]
[1768575847178,6.2907,143.12,143.04,6.294]
[1768575847377,6.29,143.14,143.04,3.29818379]
[1768575847678,5.58784001,143.15,143.04,3.29818379]
[1768575847882,6.2892,143.16,143.07,6.2926]
[1768575848680,6.2892,143.16,143.07,9.59078379]
[1768575849285,276.29614001,143.18,143.07,3.29818379]
[1768575849780,270.00784001,143.18,143.07,3.29818379]
[1768575849981,6.2885,143.17,143.09,6.2918]
[1768575851085,6.2885,143.17,143.07,3.29818379]
[1768575851284,264.42,143.18,143.08,3.29818379]
[1768575852183,264.42,143.18,143.09,6.2916]